[Event "Early-Titled-Tuesday-Blitz-October-17-2023"]
[Site "Chess.com"]
[Date "2023.10.17"]
[Round "4"]
[White "Hrant_ChessMood"]
[Black "biostatistician"]
[Result "1-0"]
[WhiteElo "2937"]
[BlackElo "2582"]
[TimeControl "180+1"]
[EndTime "8:40:41 PDT"]
[Termination "Hrant_ChessMood won on time"]

1. Nf3 {[%clk 0:03:00.9]} 1... Nf6 {[%clk 0:02:58.9]} 2. c4 {[%clk 0:03:00.4]}
2... b6 {[%clk 0:02:59.1]} 3. d4 {[%clk 0:02:59.3]} 3... Bb7 {[%clk 0:02:57.2]}
4. Nc3 {[%clk 0:02:56.8]} 4... g6 {[%clk 0:02:57.1]} 5. Qc2 {[%clk 0:02:55.1]}
5... Bg7 {[%clk 0:02:54.5]} 6. e4 {[%clk 0:02:55.1]} 6... O-O {[%clk 0:02:54.8]}
7. Be2 {[%clk 0:02:54]} 7... e6 {[%clk 0:02:54.6]} 8. e5 {[%clk 0:02:51.6]} 8...
Ne8 {[%clk 0:02:52.4]} 9. h4 {[%clk 0:02:51.2]} 9... d6 {[%clk 0:02:46.9]} 10.
Bg5 {[%clk 0:02:47.1]} 10... f6 {[%clk 0:02:42.1]} 11. exf6 {[%clk 0:02:45.8]}
11... Nxf6 {[%clk 0:02:42.2]} 12. h5 {[%clk 0:02:42.7]} 12... gxh5 {[%clk
0:02:41.9]} 13. O-O-O {[%clk 0:02:40.1]} 13... Nbd7 {[%clk 0:02:39.2]} 14. Rxh5
{[%clk 0:02:35]} 14... Qe8 {[%clk 0:02:31.4]} 15. Rh3 {[%clk 0:02:34.6]} 15...
e5 {[%clk 0:02:06.5]} 16. d5 {[%clk 0:02:32.8]} 16... Rf7 {[%clk 0:01:31.2]} 17.
Rdh1 {[%clk 0:02:28.3]} 17... Bf8 {[%clk 0:01:31.5]} 18. Bd3 {[%clk 0:02:26.2]}
18... Bg7 {[%clk 0:01:08.3]} 19. Bxh7+ {[%clk 0:02:23.3]} 19... Nxh7 {[%clk
0:01:07.6]} 20. Qxh7+ {[%clk 0:02:19.7]} 20... Kf8 {[%clk 0:01:07.3]} 21. Qg6
{[%clk 0:02:10.7]} 21... Nf6 {[%clk 0:00:40.1]} 22. Rh8+ {[%clk 0:02:03.4]}
22... Ng8 {[%clk 0:00:37.8]} 23. Ne4 {[%clk 0:01:43.9]} 23... Bc8 {[%clk
0:00:26.6]} 24. Rxg8+ {[%clk 0:01:24.3]} 24... Kxg8 {[%clk 0:00:26.3]} 25. Nf6+
{[%clk 0:01:24.6]} 25... Rxf6 {[%clk 0:00:18.4]} 26. Qxe8+ {[%clk 0:01:23.7]}
26... Rf8 {[%clk 0:00:18.9]} 27. Qh5 {[%clk 0:01:22.3]} 27... Bf5 {[%clk
0:00:19.2]} 28. Nh4 {[%clk 0:01:18.7]} 28... Bd3 {[%clk 0:00:17.1]} 29. Ng6
{[%clk 0:01:18.5]} 29... Rxf2 {[%clk 0:00:16.9]} 30. Qh7+ {[%clk 0:01:02.4]}
30... Kf7 {[%clk 0:00:15]} 31. Nxe5+ {[%clk 0:01:02.8]} 31... dxe5 {[%clk
0:00:13.8]} 32. Qxd3 {[%clk 0:01:03.7]} 32... e4 {[%clk 0:00:09.8]} 33. Qg3
{[%clk 0:00:59]} 33... Rxb2 {[%clk 0:00:03.3]} 34. Qxc7+ {[%clk 0:00:58.9]}
34... Kg6 {[%clk 0:00:03.6]} 35. Qc6+ {[%clk 0:00:59.2]} 35... Kxg5 {[%clk
0:00:03.5]} 36. Qxa8 {[%clk 0:00:58.8]} 36... Rxa2 {[%clk 0:00:02.9]} 37. Qd8+
{[%clk 0:00:59.4]} 37... Bf6 {[%clk 0:00:02.7]} 38. Qg8+ {[%clk 0:00:59.1]} 1-0

[Event "Early-Titled-Tuesday-Blitz-October-17-2023"]
[Site "Chess.com"]
[Date "2023.10.17"]
[Round "4"]
[White "CADMartin"]
[Black "ukchessbomber"]
[Result "0-1"]
[WhiteElo "2471"]
[BlackElo "2645"]
[TimeControl "180+1"]
[EndTime "8:40:42 PDT"]
[Termination "ukchessbomber won by resignation"]

1. Nf3 {[%clk 0:02:41.1]} 1... a6 {[%clk 0:03:00.9]} 2. g3 {[%clk 0:02:42]} 2...
d6 {[%clk 0:02:58.5]} 3. Bg2 {[%clk 0:02:42.9]} 3... Bd7 {[%clk 0:02:59.2]} 4.
O-O {[%clk 0:02:29.7]} 4... Qc8 {[%clk 0:02:59]} 5. Re1 {[%clk 0:02:28.8]} 5...
Bh3 {[%clk 0:02:58.7]} 6. Bh1 {[%clk 0:02:29]} 6... h5 {[%clk 0:02:59.3]} 7. e4
{[%clk 0:02:21.5]} 7... h4 {[%clk 0:02:59.8]} 8. d4 {[%clk 0:02:21]} 8... Nc6
{[%clk 0:02:55]} 9. c3 {[%clk 0:02:19.2]} 9... g6 {[%clk 0:02:54.2]} 10. Bg5
{[%clk 0:02:09.2]} 10... hxg3 {[%clk 0:02:48.6]} 11. fxg3 {[%clk 0:02:06]} 11...
Bg7 {[%clk 0:02:47.7]} 12. Nbd2 {[%clk 0:01:12.2]} 12... e5 {[%clk 0:02:48.2]}
13. d5 {[%clk 0:01:12]} 13... Nce7 {[%clk 0:02:40.5]} 14. Qc2 {[%clk 0:01:08.1]}
14... f6 {[%clk 0:02:37]} 15. Be3 {[%clk 0:01:08]} 15... Nh6 {[%clk 0:02:37.3]}
16. Nc4 {[%clk 0:00:59.9]} 16... Nf7 {[%clk 0:02:36.9]} 17. b4 {[%clk
0:00:55.8]} 17... g5 {[%clk 0:02:21.8]} 18. a4 {[%clk 0:00:53.1]} 18... Ng6
{[%clk 0:02:20.5]} 19. b5 {[%clk 0:00:52.1]} 19... f5 {[%clk 0:02:13.6]} 20.
Nxg5 {[%clk 0:00:46.4]} 20... f4 {[%clk 0:02:14.1]} 21. Nxf7 {[%clk 0:00:41.4]}
21... Kxf7 {[%clk 0:02:15]} 22. Bf2 {[%clk 0:00:41.5]} 22... Bf6 {[%clk
0:02:03.2]} 23. b6 {[%clk 0:00:40.6]} 23... Be7 {[%clk 0:01:40.2]} 24. bxc7
{[%clk 0:00:32.3]} 24... Qxc7 {[%clk 0:01:40.6]} 25. Nb6 {[%clk 0:00:32.6]}
25... Rag8 {[%clk 0:01:41]} 26. Bg2 {[%clk 0:00:27.3]} 26... Bxg2 {[%clk
0:01:36.5]} 27. Kxg2 {[%clk 0:00:28.2]} 27... Nh4+ {[%clk 0:01:37.1]} 28. Kf1
{[%clk 0:00:28.4]} 28... Nf3 {[%clk 0:01:37.3]} 29. Ke2 {[%clk 0:00:27.1]} 29...
Nxe1 {[%clk 0:01:35.7]} 30. Rxe1 {[%clk 0:00:27.6]} 30... Rxh2 {[%clk
0:01:36.5]} 31. Kd3 {[%clk 0:00:23.3]} 31... fxg3 {[%clk 0:01:34]} 32. Rf1
{[%clk 0:00:23]} 32... Rxf2 {[%clk 0:01:30.1]} 33. Rxf2+ {[%clk 0:00:23.9]}
33... gxf2 {[%clk 0:01:30.7]} 34. Qxf2+ {[%clk 0:00:24.5]} 34... Bf6 {[%clk
0:01:31.4]} 35. Nc4 {[%clk 0:00:21.9]} 35... Qd7 {[%clk 0:01:31.9]} 36. Qf3
{[%clk 0:00:21.6]} 36... Qg4 {[%clk 0:01:31.7]} 37. Nxd6+ {[%clk 0:00:21.1]}
37... Ke7 {[%clk 0:01:30.7]} 38. Nf5+ {[%clk 0:00:20.9]} 38... Kd7 {[%clk
0:01:30.8]} 39. Qf2 {[%clk 0:00:19.9]} 39... Qd1+ {[%clk 0:01:29.1]} 40. Kc4
{[%clk 0:00:19.2]} 40... Qxa4+ {[%clk 0:01:29.3]} 41. Kd3 {[%clk 0:00:19.9]}
41... Qd1+ {[%clk 0:01:29.4]} 42. Kc4 {[%clk 0:00:20.2]} 42... b5+ {[%clk
0:01:25.5]} 43. Kc5 {[%clk 0:00:19.5]} 43... Qg1 {[%clk 0:01:24.4]} 44. Qxg1
{[%clk 0:00:17.5]} 44... Rxg1 {[%clk 0:01:25.3]} 45. Kb6 {[%clk 0:00:18.1]}
45... Ra1 {[%clk 0:01:24.6]} 46. Ne3 {[%clk 0:00:17.5]} 46... Bg5 {[%clk
0:01:24.5]} 47. Nc2 {[%clk 0:00:17]} 47... Ra4 {[%clk 0:01:24.6]} 48. Nb4 {[%clk
0:00:17.3]} 48... Be3+ {[%clk 0:01:25]} 49. Kb7 {[%clk 0:00:16.5]} 49... a5
{[%clk 0:01:25.6]} 50. Nc6 {[%clk 0:00:17]} 50... Kd6 {[%clk 0:01:24.8]} 51. Ka6
{[%clk 0:00:15.5]} 51... Rxe4 {[%clk 0:01:22.8]} 52. Kxb5 {[%clk 0:00:15.8]}
52... Kxd5 {[%clk 0:01:23.2]} 53. c4+ {[%clk 0:00:15.1]} 53... Rxc4 {[%clk
0:01:19.9]} 54. Ne7+ {[%clk 0:00:15.4]} 54... Ke6 {[%clk 0:01:20.3]} 55. Kxc4
{[%clk 0:00:15.4]} 55... Kxe7 {[%clk 0:01:20.9]} 0-1

[Event "Early-Titled-Tuesday-Blitz-October-17-2023"]
[Site "Chess.com"]
[Date "2023.10.17"]
[Round "4"]
[White "invisible_s0ul"]
[Black "Shockerlover"]
[Result "1-0"]
[WhiteElo "2276"]
[BlackElo "1945"]
[TimeControl "180+1"]
[EndTime "8:40:44 PDT"]
[Termination "invisible_s0ul won by checkmate"]

1. e4 {[%clk 0:03:00.9]} 1... c5 {[%clk 0:02:59.6]} 2. Nf3 {[%clk 0:03:00.2]}
2... Nc6 {[%clk 0:02:59.8]} 3. d4 {[%clk 0:03:00.7]} 3... cxd4 {[%clk
0:03:00.7]} 4. Nxd4 {[%clk 0:03:01.3]} 4... g6 {[%clk 0:02:59.5]} 5. c4 {[%clk
0:03:00.2]} 5... Nf6 {[%clk 0:02:58]} 6. Nc3 {[%clk 0:02:59.6]} 6... Bg7 {[%clk
0:02:58.2]} 7. Nc2 {[%clk 0:02:57.9]} 7... O-O {[%clk 0:02:58.3]} 8. Be3 {[%clk
0:02:58.3]} 8... d6 {[%clk 0:02:56.1]} 9. Be2 {[%clk 0:02:58.8]} 9... Ne5 {[%clk
0:02:45.2]} 10. f3 {[%clk 0:02:55.2]} 10... Be6 {[%clk 0:02:44.9]} 11. b3 {[%clk
0:02:48.8]} 11... a6 {[%clk 0:02:41.1]} 12. O-O {[%clk 0:02:45.4]} 12... h5
{[%clk 0:02:25.1]} 13. Qd2 {[%clk 0:02:40]} 13... Kh7 {[%clk 0:02:23.4]} 14.
Rac1 {[%clk 0:02:39]} 14... Rc8 {[%clk 0:02:22.7]} 15. Rfd1 {[%clk 0:02:23.3]}
15... Qa5 {[%clk 0:02:00.4]} 16. Nd4 {[%clk 0:02:03.5]} 16... Bd7 {[%clk
0:01:56.2]} 17. Bf1 {[%clk 0:01:58.2]} 17... Nc6 {[%clk 0:01:45.3]} 18. Qf2
{[%clk 0:01:45.2]} 18... Nxd4 {[%clk 0:01:43.1]} 19. Bxd4 {[%clk 0:01:46.1]}
19... Bc6 {[%clk 0:01:43.2]} 20. Rb1 {[%clk 0:01:41.6]} 20... Qg5 {[%clk
0:01:39.4]} 21. Be3 {[%clk 0:01:37.6]} 21... Qa5 {[%clk 0:01:28.3]} 22. b4
{[%clk 0:01:35.9]} 22... Qc7 {[%clk 0:01:21.2]} 23. Rbc1 {[%clk 0:01:33]} 23...
Qd7 {[%clk 0:01:14.2]} 24. b5 {[%clk 0:01:27.2]} 24... axb5 {[%clk 0:01:07.3]}
25. cxb5 {[%clk 0:01:28.1]} 25... Bxe4 {[%clk 0:01:01.2]} 26. Nxe4 {[%clk
0:01:27.4]} 26... Nxe4 {[%clk 0:00:53.5]} 27. fxe4 {[%clk 0:01:28.3]} 27... Qg4
{[%clk 0:00:44.6]} 28. Qf3 {[%clk 0:01:21.7]} 28... Qe6 {[%clk 0:00:42.8]} 29.
a4 {[%clk 0:01:13.2]} 29... Ra8 {[%clk 0:00:39.2]} 30. Bc4 {[%clk 0:01:09.4]}
30... Qf6 {[%clk 0:00:26.4]} 31. Qxf6 {[%clk 0:01:06.7]} 31... Bxf6 {[%clk
0:00:26.3]} 32. Bb3 {[%clk 0:01:07.2]} 32... g5 {[%clk 0:00:18.3]} 33. Rc7
{[%clk 0:01:02.7]} 33... Rfb8 {[%clk 0:00:14.9]} 34. Bd4 {[%clk 0:01:00.6]}
34... Kg7 {[%clk 0:00:14.2]} 35. Bxf6+ {[%clk 0:01:00.4]} 35... exf6 {[%clk
0:00:12.6]} 36. Rxd6 {[%clk 0:01:00.4]} 36... Rd8 {[%clk 0:00:09.2]} 37. Rxf7+
{[%clk 0:00:59.6]} 37... Kg6 {[%clk 0:00:08.2]} 38. Rdxf6# {[%clk 0:01:00.1]}
1-0

[Event "Early-Titled-Tuesday-Blitz-October-17-2023"]
[Site "Chess.com"]
[Date "2023.10.17"]
[Round "4"]
[White "mfwagnerpeixoto"]
[Black "CristianS27"]
[Result "0-1"]
[WhiteElo "2332"]
[BlackElo "2512"]
[TimeControl "180+1"]
[EndTime "8:40:48 PDT"]
[Termination "CristianS27 won by resignation"]

1. e4 {[%clk 0:02:54.5]} 1... e5 {[%clk 0:02:59.9]} 2. Nf3 {[%clk 0:02:53.7]}
2... Nc6 {[%clk 0:03:00.4]} 3. d4 {[%clk 0:02:51.6]} 3... exd4 {[%clk
0:03:01.3]} 4. Bc4 {[%clk 0:02:51]} 4... Nf6 {[%clk 0:03:00.9]} 5. O-O {[%clk
0:02:50.2]} 5... Nxe4 {[%clk 0:03:00.7]} 6. Re1 {[%clk 0:02:50.6]} 6... d5
{[%clk 0:03:01.2]} 7. Bxd5 {[%clk 0:02:51.1]} 7... Qxd5 {[%clk 0:03:02.1]} 8.
Nc3 {[%clk 0:02:51.5]} 8... Qd7 {[%clk 0:02:59]} 9. Nxe4 {[%clk 0:02:38.4]} 9...
Be7 {[%clk 0:02:56.6]} 10. Bg5 {[%clk 0:02:34.6]} 10... O-O {[%clk 0:02:55.2]}
11. Bxe7 {[%clk 0:02:34.2]} 11... Qxe7 {[%clk 0:02:43.1]} 12. Nxd4 {[%clk
0:02:28.3]} 12... Bd7 {[%clk 0:02:39.6]} 13. Ng3 {[%clk 0:02:22.1]} 13... Qb4
{[%clk 0:02:20.3]} 14. Nb3 {[%clk 0:02:12.5]} 14... Bg4 {[%clk 0:02:17]} 15. f3
{[%clk 0:02:05]} 15... Be6 {[%clk 0:02:15.3]} 16. Re4 {[%clk 0:01:57.3]} 16...
Qb6+ {[%clk 0:02:13.4]} 17. Kh1 {[%clk 0:01:57.5]} 17... a5 {[%clk 0:02:13]} 18.
Qg1 {[%clk 0:01:29.5]} 18... Qxg1+ {[%clk 0:01:59]} 19. Kxg1 {[%clk 0:01:30.4]}
19... b6 {[%clk 0:01:52.6]} 20. Rae1 {[%clk 0:01:21.7]} 20... a4 {[%clk
0:01:51]} 21. Nc1 {[%clk 0:01:21.7]} 21... a3 {[%clk 0:01:49.8]} 22. b3 {[%clk
0:01:12.8]} 22... Rfd8 {[%clk 0:01:50.1]} 23. Nd3 {[%clk 0:01:08.5]} 23... Nd4
{[%clk 0:01:44.9]} 24. Rc1 {[%clk 0:01:03.5]} 24... Nxc2 {[%clk 0:01:39.2]} 25.
Rxc2 {[%clk 0:00:56.9]} 25... Rxd3 {[%clk 0:01:38.9]} 26. Rxc7 {[%clk
0:00:56.8]} 26... Bxb3 {[%clk 0:01:33.6]} 27. Re2 {[%clk 0:00:16.7]} 27... Be6
{[%clk 0:01:29.6]} 28. Ne4 {[%clk 0:00:14.1]} 28... Rad8 {[%clk 0:01:29.6]} 29.
Kf2 {[%clk 0:00:12.5]} 29... h6 {[%clk 0:01:28.7]} 30. h4 {[%clk 0:00:10.4]}
30... Bd5 {[%clk 0:01:22.9]} 31. Nc3 {[%clk 0:00:10.2]} 31... Be6 {[%clk
0:01:16.5]} 32. Nb5 {[%clk 0:00:09.1]} 32... R8d5 {[%clk 0:00:53]} 33. Na7
{[%clk 0:00:07]} 33... Rd2 {[%clk 0:00:51.2]} 34. Nc6 {[%clk 0:00:04.8]} 34...
Rxe2+ {[%clk 0:00:46.4]} 35. Kxe2 {[%clk 0:00:05.7]} 35... Rc5 {[%clk
0:00:46.1]} 0-1

[Event "Early-Titled-Tuesday-Blitz-October-17-2023"]
[Site "Chess.com"]
[Date "2023.10.17"]
[Round "4"]
[White "Truequitos"]
[Black "nelsi"]
[Result "1-0"]
[WhiteElo "2508"]
[BlackElo "2284"]
[TimeControl "180+1"]
[EndTime "8:40:51 PDT"]
[Termination "Truequitos won on time"]

1. d4 {[%clk 0:02:57.2]} 1... Nf6 {[%clk 0:02:59.7]} 2. Nf3 {[%clk 0:02:56.9]}
2... g6 {[%clk 0:02:59.9]} 3. Bf4 {[%clk 0:02:56.3]} 3... Bg7 {[%clk 0:03:00.3]}
4. Nc3 {[%clk 0:02:56.9]} 4... d6 {[%clk 0:03:00.8]} 5. Qd2 {[%clk 0:02:57.4]}
5... O-O {[%clk 0:03:00.8]} 6. Bh6 {[%clk 0:02:57.5]} 6... Nc6 {[%clk
0:02:58.7]} 7. h4 {[%clk 0:02:57.4]} 7... e5 {[%clk 0:02:52.1]} 8. h5 {[%clk
0:02:52.6]} 8... exd4 {[%clk 0:02:47.7]} 9. Nb5 {[%clk 0:02:35.1]} 9... Bf5
{[%clk 0:02:15.7]} 10. Bxg7 {[%clk 0:02:31.5]} 10... Kxg7 {[%clk 0:02:14.9]} 11.
Nbxd4 {[%clk 0:02:32.3]} 11... Ne4 {[%clk 0:01:51]} 12. Qf4 {[%clk 0:02:26.8]}
12... Nxd4 {[%clk 0:01:40.3]} 13. Nxd4 {[%clk 0:02:27.7]} 13... Qf6 {[%clk
0:01:20.6]} 14. e3 {[%clk 0:02:15.5]} 14... c5 {[%clk 0:01:15]} 15. Nxf5+ {[%clk
0:02:02.7]} 15... Qxf5 {[%clk 0:01:14.1]} 16. Qxf5 {[%clk 0:01:32.1]} 16... gxf5
{[%clk 0:01:15]} 17. h6+ {[%clk 0:01:32.2]} 17... Kg6 {[%clk 0:01:13]} 18. Rh3
{[%clk 0:01:26.3]} 18... f6 {[%clk 0:01:00.2]} 19. f3 {[%clk 0:01:23.4]} 19...
Ng5 {[%clk 0:01:00]} 20. Rg3 {[%clk 0:01:23.5]} 20... Kxh6 {[%clk 0:00:58.2]}
21. O-O-O {[%clk 0:01:22.2]} 21... Rad8 {[%clk 0:00:54.3]} 22. Bc4 {[%clk
0:01:19]} 22... Kg6 {[%clk 0:00:34]} 23. f4 {[%clk 0:01:18.7]} 23... Rfe8 {[%clk
0:00:27.6]} 24. fxg5 {[%clk 0:01:17.8]} 24... fxg5 {[%clk 0:00:28.3]} 25. Bd5
{[%clk 0:01:17.6]} 25... b5 {[%clk 0:00:26.2]} 26. Rf3 {[%clk 0:01:14.8]} 26...
Re5 {[%clk 0:00:22]} 27. b3 {[%clk 0:01:09.1]} 27... h5 {[%clk 0:00:22.1]} 28.
c4 {[%clk 0:01:08.4]} 28... bxc4 {[%clk 0:00:19]} 29. bxc4 {[%clk 0:01:08.2]}
29... a5 {[%clk 0:00:19.6]} 30. Kc2 {[%clk 0:01:07]} 30... a4 {[%clk 0:00:18.9]}
31. Rb1 {[%clk 0:01:06.5]} 31... Rde8 {[%clk 0:00:19.5]} 32. Rb6 {[%clk
0:01:05]} 32... Rxe3 {[%clk 0:00:17.3]} 33. Rxd6+ {[%clk 0:01:05.6]} 33... Kg7
{[%clk 0:00:17.8]} 34. Rxf5 {[%clk 0:01:04.6]} 34... Re2+ {[%clk 0:00:15.6]} 35.
Kc1 {[%clk 0:00:55.7]} 35... Re1+ {[%clk 0:00:15.5]} 36. Kb2 {[%clk 0:00:56.3]}
36... R1e2+ {[%clk 0:00:12.6]} 37. Ka3 {[%clk 0:00:44.9]} 37... R8e3+ {[%clk
0:00:12.9]} 38. Kxa4 {[%clk 0:00:45.4]} 38... Rxa2+ {[%clk 0:00:13.7]} 39. Kb5
{[%clk 0:00:45.8]} 1-0

[Event "Early-Titled-Tuesday-Blitz-October-17-2023"]
[Site "Chess.com"]
[Date "2023.10.17"]
[Round "4"]
[White "borocotoajua"]
[Black "giomar27"]
[Result "0-1"]
[WhiteElo "2601"]
[BlackElo "2341"]
[TimeControl "180+1"]
[EndTime "8:40:52 PDT"]
[Termination "giomar27 won by resignation"]

1. d4 {[%clk 0:02:57.8]} 1... Nf6 {[%clk 0:02:59.3]} 2. Nf3 {[%clk 0:02:57.5]}
2... c5 {[%clk 0:02:57.1]} 3. d5 {[%clk 0:02:55.2]} 3... b5 {[%clk 0:02:55.7]}
4. a4 {[%clk 0:02:39.7]} 4... b4 {[%clk 0:02:54.9]} 5. Nbd2 {[%clk 0:02:36.5]}
5... d6 {[%clk 0:02:49]} 6. e4 {[%clk 0:02:30.8]} 6... e5 {[%clk 0:02:49.2]} 7.
dxe6 {[%clk 0:02:27.5]} 7... Bxe6 {[%clk 0:02:45.5]} 8. Ng5 {[%clk 0:02:22.6]}
8... Be7 {[%clk 0:02:41.9]} 9. Nxe6 {[%clk 0:02:21.2]} 9... fxe6 {[%clk
0:02:42]} 10. Bb5+ {[%clk 0:02:17.5]} 10... Nbd7 {[%clk 0:02:41.6]} 11. e5
{[%clk 0:02:18]} 11... dxe5 {[%clk 0:02:36.9]} 12. Nc4 {[%clk 0:02:12.8]} 12...
O-O {[%clk 0:02:37]} 13. O-O {[%clk 0:02:02.1]} 13... Qc7 {[%clk 0:02:21.9]} 14.
a5 {[%clk 0:01:50.3]} 14... Rad8 {[%clk 0:02:18.3]} 15. Qe2 {[%clk 0:01:48.4]}
15... e4 {[%clk 0:01:55.9]} 16. a6 {[%clk 0:01:43]} 16... Ne5 {[%clk 0:01:54.2]}
17. Bf4 {[%clk 0:01:41.9]} 17... Bd6 {[%clk 0:01:36.9]} 18. Bg3 {[%clk
0:01:12.4]} 18... Nxc4 {[%clk 0:01:29.7]} 19. Bxc4 {[%clk 0:01:13.3]} 19... Kh8
{[%clk 0:01:23.8]} 20. Bxe6 {[%clk 0:01:09.3]} 20... Bxg3 {[%clk 0:01:23.5]} 21.
hxg3 {[%clk 0:01:10.2]} 21... Qe5 {[%clk 0:01:22.9]} 22. Bc4 {[%clk 0:00:54.6]}
22... Qxb2 {[%clk 0:01:15.1]} 23. Rad1 {[%clk 0:00:53.1]} 23... Rd4 {[%clk
0:01:08.2]} 24. g4 {[%clk 0:00:51.7]} 24... Qc3 {[%clk 0:01:07.2]} 25. Be6
{[%clk 0:00:47]} 25... h6 {[%clk 0:00:34.7]} 26. Rfe1 {[%clk 0:00:31]} 26...
Rfd8 {[%clk 0:00:33.5]} 27. Rxd4 {[%clk 0:00:27]} 27... Qxd4 {[%clk 0:00:27.6]}
28. Qb5 {[%clk 0:00:19]} 28... Qd2 {[%clk 0:00:20.3]} 29. Re2 {[%clk 0:00:16.1]}
29... Qd1+ {[%clk 0:00:19.5]} 30. Kh2 {[%clk 0:00:16.3]} 30... Qd6+ {[%clk
0:00:20.2]} 31. f4 {[%clk 0:00:14]} 31... exf3+ {[%clk 0:00:20.2]} 0-1

[Event "Early-Titled-Tuesday-Blitz-October-17-2023"]
[Site "Chess.com"]
[Date "2023.10.17"]
[Round "4"]
[White "Mystery2007"]
[Black "BelaKis"]
[Result "1-0"]
[WhiteElo "2459"]
[BlackElo "2172"]
[TimeControl "180+1"]
[EndTime "8:40:52 PDT"]
[Termination "Mystery2007 won on time"]

1. b3 {[%clk 0:03:00.9]} 1... d6 {[%clk 0:02:59.5]} 2. Bb2 {[%clk 0:03:01.8]}
2... Nd7 {[%clk 0:03:00]} 3. e3 {[%clk 0:03:00.4]} 3... Ngf6 {[%clk 0:03:00.5]}
4. g3 {[%clk 0:02:58.3]} 4... g6 {[%clk 0:03:00.9]} 5. Bg2 {[%clk 0:02:58.8]}
5... Bg7 {[%clk 0:03:01.4]} 6. Ne2 {[%clk 0:02:59.5]} 6... O-O {[%clk
0:03:01.5]} 7. O-O {[%clk 0:03:00.1]} 7... c5 {[%clk 0:02:59.1]} 8. c4 {[%clk
0:02:59.1]} 8... a6 {[%clk 0:02:59]} 9. Nbc3 {[%clk 0:02:58.5]} 9... Rb8 {[%clk
0:02:59.4]} 10. a4 {[%clk 0:02:53.7]} 10... b6 {[%clk 0:02:55]} 11. d4 {[%clk
0:02:52.2]} 11... Qc7 {[%clk 0:02:40.5]} 12. Re1 {[%clk 0:02:50.8]} 12... e5
{[%clk 0:02:26.1]} 13. Qd2 {[%clk 0:02:44.5]} 13... Re8 {[%clk 0:02:03.6]} 14.
Rad1 {[%clk 0:02:39]} 14... h5 {[%clk 0:01:47.7]} 15. dxe5 {[%clk 0:02:32.1]}
15... dxe5 {[%clk 0:01:46.7]} 16. e4 {[%clk 0:02:22.8]} 16... Nf8 {[%clk
0:01:30.4]} 17. h3 {[%clk 0:02:14.8]} 17... Ne6 {[%clk 0:01:28.9]} 18. Nd5
{[%clk 0:02:13.9]} 18... Qd8 {[%clk 0:01:01.8]} 19. Qc1 {[%clk 0:02:04.6]} 19...
Nd4 {[%clk 0:00:59.1]} 20. Nxd4 {[%clk 0:02:02.8]} 20... exd4 {[%clk 0:00:58.6]}
21. f4 {[%clk 0:01:45.4]} 21... h4 {[%clk 0:00:47.6]} 22. g4 {[%clk 0:01:41.2]}
22... Nxg4 {[%clk 0:00:36.1]} 23. hxg4 {[%clk 0:01:39.5]} 23... Bxg4 {[%clk
0:00:37]} 24. Rd3 {[%clk 0:01:37.6]} 24... Qd7 {[%clk 0:00:23.4]} 25. Qd2 {[%clk
0:01:24.3]} 25... Bh6 {[%clk 0:00:18.2]} 26. Qf2 {[%clk 0:01:23.8]} 26... h3
{[%clk 0:00:18.2]} 27. Bf1 {[%clk 0:01:17.5]} 27... Kg7 {[%clk 0:00:14.7]} 28.
Bxd4+ {[%clk 0:01:02.4]} 28... cxd4 {[%clk 0:00:12.4]} 29. Qxd4+ {[%clk
0:01:03.3]} 29... f6 {[%clk 0:00:12.4]} 30. Qxf6+ {[%clk 0:01:01.8]} 30... Kh7
{[%clk 0:00:12.7]} 31. Qh4 {[%clk 0:00:56.4]} 31... Kg7 {[%clk 0:00:11.6]} 32.
Ne3 {[%clk 0:00:32]} 1-0

[Event "Early-Titled-Tuesday-Blitz-October-17-2023"]
[Site "Chess.com"]
[Date "2023.10.17"]
[Round "4"]
[White "Rital44"]
[Black "pineapplepenn"]
[Result "1-0"]
[WhiteElo "2495"]
[BlackElo "2415"]
[TimeControl "180+1"]
[EndTime "8:40:53 PDT"]
[Termination "Rital44 won by checkmate"]

1. d4 {[%clk 0:03:00.9]} 1... d6 {[%clk 0:02:57.5]} 2. Nf3 {[%clk 0:03:00.6]}
2... Nf6 {[%clk 0:02:56.4]} 3. c4 {[%clk 0:03:01.2]} 3... g6 {[%clk 0:02:56.3]}
4. Nc3 {[%clk 0:03:01.8]} 4... Bg7 {[%clk 0:02:56.7]} 5. e4 {[%clk 0:03:02.5]}
5... O-O {[%clk 0:02:56.8]} 6. Be2 {[%clk 0:03:03.2]} 6... e5 {[%clk 0:02:56.1]}
7. O-O {[%clk 0:03:03.9]} 7... Nc6 {[%clk 0:02:51.8]} 8. d5 {[%clk 0:03:04.2]}
8... Ne7 {[%clk 0:02:50.3]} 9. b4 {[%clk 0:03:04.7]} 9... a5 {[%clk 0:02:49.6]}
10. Ba3 {[%clk 0:03:05]} 10... axb4 {[%clk 0:02:49.7]} 11. Bxb4 {[%clk
0:03:05.9]} 11... b6 {[%clk 0:02:50.2]} 12. a4 {[%clk 0:03:05.7]} 12... Nd7
{[%clk 0:02:47.5]} 13. a5 {[%clk 0:03:04.7]} 13... bxa5 {[%clk 0:02:46.2]} 14.
Bxa5 {[%clk 0:02:56.4]} 14... f5 {[%clk 0:02:45.5]} 15. Nb5 {[%clk 0:02:48.1]}
15... Nb6 {[%clk 0:02:38]} 16. Bxb6 {[%clk 0:02:46]} 16... Rxa1 {[%clk
0:02:38.9]} 17. Qxa1 {[%clk 0:02:46.2]} 17... cxb6 {[%clk 0:02:38.7]} 18. Qa3
{[%clk 0:02:45.3]} 18... fxe4 {[%clk 0:02:38.2]} 19. Ng5 {[%clk 0:02:45.4]}
19... Nf5 {[%clk 0:02:34.8]} 20. Nxe4 {[%clk 0:02:42.5]} 20... Rf7 {[%clk
0:02:23.2]} 21. Nexd6 {[%clk 0:02:37.8]} 21... Nxd6 {[%clk 0:02:15.2]} 22. Qxd6
{[%clk 0:02:35.4]} 22... Qg5 {[%clk 0:01:59.3]} 23. Qa3 {[%clk 0:02:09.5]} 23...
h5 {[%clk 0:01:56.9]} 24. Nd6 {[%clk 0:02:06.9]} 24... Rf8 {[%clk 0:01:50.8]}
25. Nxc8 {[%clk 0:02:06.7]} 25... Rxc8 {[%clk 0:01:51.6]} 26. Qb3 {[%clk
0:01:47.4]} 26... Qd2 {[%clk 0:01:46.6]} 27. Bd3 {[%clk 0:01:44.3]} 27... Rf8
{[%clk 0:01:41.7]} 28. Bxg6 {[%clk 0:01:38.5]} 28... h4 {[%clk 0:01:37.1]} 29.
Qh3 {[%clk 0:01:31.8]} 29... Qg5 {[%clk 0:01:23.8]} 30. Be4 {[%clk 0:01:28.7]}
30... Rf4 {[%clk 0:01:19.5]} 31. Qe6+ {[%clk 0:01:25]} 31... Kh8 {[%clk
0:01:19.2]} 32. Qe8+ {[%clk 0:01:17.3]} 32... Bf8 {[%clk 0:01:18.2]} 33. d6
{[%clk 0:00:59.9]} 33... h3 {[%clk 0:01:11.7]} 34. g3 {[%clk 0:00:59.6]} 34...
Rxe4 {[%clk 0:01:08]} 35. Qxf8+ {[%clk 0:00:59.5]} 35... Kh7 {[%clk 0:01:08.2]}
36. Qe7+ {[%clk 0:00:50.7]} 36... Kh6 {[%clk 0:01:03.6]} 37. Qxg5+ {[%clk
0:00:48.4]} 37... Kxg5 {[%clk 0:01:03.3]} 38. Rd1 {[%clk 0:00:49.1]} 38... b5
{[%clk 0:00:52.2]} 39. d7 {[%clk 0:00:48.8]} 39... bxc4 {[%clk 0:00:51.8]} 40.
d8=Q+ {[%clk 0:00:48.8]} 40... Kg4 {[%clk 0:00:51.9]} 41. Qd5 {[%clk 0:00:42.7]}
41... Re2 {[%clk 0:00:43]} 42. Qxc4+ {[%clk 0:00:41.1]} 42... Kf3 {[%clk
0:00:37.8]} 43. Rd3+ {[%clk 0:00:40.7]} 43... Re3 {[%clk 0:00:34.9]} 44. Rxe3#
{[%clk 0:00:41]} 1-0